Portfolio,Expense Area,Cost Centre,Expense Type,Account Code,Amount,Supplier Name,SupplierId,Pay Date,Transaction No.
Resources & Corporate Governance ,Safety and Resilience,EPL00,New Equipment,0300,29.90,Arco Limited,100015,02/08/2012,10169606
Resources & Corporate Governance ,Toilet Cleaning,WBC01,Materials,0303,81.87,Arco Limited,100015,02/08/2012,10169606
Resources & Corporate Governance ,Domestic Waste Collection,WWC00,Materials,0303,35.48,Arco Limited,100015,02/08/2012,10169606
Resources & Corporate Governance ,Toilet Cleaning,WBC01,Personal Protective Clothing,0340,9.74,Arco Limited,100015,02/08/2012,10169606
Resources & Corporate Governance ,Grounds Maintenance,WGM00,Personal Protective Clothing,0340,102.20,Arco Limited,100015,02/08/2012,10169606
Resources & Corporate Governance ,Highways,WHG00,Personal Protective Clothing,0340,14.60,Arco Limited,100015,02/08/2012,10169606
Resources & Corporate Governance ,Street Cleansing,WSC00,Personal Protective Clothing,0340,116.80,Arco Limited,100015,02/08/2012,10169606
Resources & Corporate Governance ,Garage Internal,WVR01,Personal Protective Clothing,0340,19.47,Arco Limited,100015,02/08/2012,10169606
Resources & Corporate Governance ,Domestic Waste Collection,WWC00,Personal Protective Clothing,0340,225.91,Arco Limited,100015,02/08/2012,10169606
Resources & Corporate Governance ,Trade Waste Collection,WWC01,Personal Protective Clothing,0340,19.47,Arco Limited,100015,02/08/2012,10169606
Resources & Corporate Governance ,Toilet Cleaning,WBC01,Personal Protective Clothing,0340,5.00,Arco Limited,100015,16/08/2012,10171089
Resources & Corporate Governance ,Grounds Maintenance,WGM00,Personal Protective Clothing,0340,331.66,Arco Limited,100015,16/08/2012,10171089
Resources & Corporate Governance ,Highways,WHG00,Personal Protective Clothing,0340,7.50,Arco Limited,100015,16/08/2012,10171089
Resources & Corporate Governance ,Street Cleansing,WSC00,Personal Protective Clothing,0340,60.00,Arco Limited,100015,16/08/2012,10171089
Resources & Corporate Governance ,Garage Internal,WVR01,Personal Protective Clothing,0340,10.00,Arco Limited,100015,16/08/2012,10171089
Resources & Corporate Governance ,Domestic Waste Collection,WWC00,Personal Protective Clothing,0340,265.56,Arco Limited,100015,16/08/2012,10171089
Resources & Corporate Governance ,Trade Waste Collection,WWC01,Personal Protective Clothing,0340,10.00,Arco Limited,100015,16/08/2012,10171089
Resources & Corporate Governance ,Toilet Cleaning,WBC01,Materials,0303,444.50,Arco Limited,100015,23/08/2012,10171598
Resources & Corporate Governance ,Garage Internal,WVR01,Materials,0303,111.96,Arco Limited,100015,23/08/2012,10171598
Resources & Corporate Governance ,Domestic Waste Collection,WWC00,Materials,0303,289.50,Arco Limited,100015,23/08/2012,10171598
Resources & Corporate Governance ,WSU Depot,WDP00,Messing Facilities,0332,510.76,Arco Limited,100015,23/08/2012,10171598
Resources & Corporate Governance ,Toilet Cleaning,WBC01,Personal Protective Clothing,0340,2.09,Arco Limited,100015,23/08/2012,10171598
Resources & Corporate Governance ,Grounds Maintenance,WGM00,Personal Protective Clothing,0340,21.86,Arco Limited,100015,23/08/2012,10171598
Resources & Corporate Governance ,Highways,WHG00,Personal Protective Clothing,0340,3.13,Arco Limited,100015,23/08/2012,10171598
Resources & Corporate Governance ,Street Cleansing,WSC00,Personal Protective Clothing,0340,24.93,Arco Limited,100015,23/08/2012,10171598
Resources & Corporate Governance ,Garage Internal,WVR01,Personal Protective Clothing,0340,4.17,Arco Limited,100015,23/08/2012,10171598
Resources & Corporate Governance ,Domestic Waste Collection,WWC00,Personal Protective Clothing,0340,43.71,Arco Limited,100015,23/08/2012,10171598
Resources & Corporate Governance ,Trade Waste Collection,WWC01,Personal Protective Clothing,0340,4.17,Arco Limited,100015,23/08/2012,10171598
Sustainable Environment,Regulatory Services,REG00,Vehicle Repair and Maintenance,0200,6.00,Arrow Engineering Supply Co Ltd,100016,23/08/2012,10171435
Resources & Corporate Governance ,Grounds Maintenance,WGM00,Vehicle Repair and Maintenance,0200,15.99,Arrow Engineering Supply Co Ltd,100016,23/08/2012,10171435
Resources & Corporate Governance ,Domestic Waste Collection,WWC00,Vehicle Repair and Maintenance,0200,16.63,Arrow Engineering Supply Co Ltd,100016,23/08/2012,10171435
Resources & Corporate Governance ,Grounds Maintenance,WGM00,Materials,0303,42.88,Arrow Engineering Supply Co Ltd,100016,23/08/2012,10171435
Resources & Corporate Governance ,Garage Internal,WVR01,Materials,0303,129.22,Arrow Engineering Supply Co Ltd,100016,23/08/2012,10171435
Resources & Corporate Governance ,Grounds Maintenance,WGM00,Tools,0304,209.00,Arrow Engineering Supply Co Ltd,100016,23/08/2012,10171435
Resources & Corporate Governance ,Garage Internal,WVR01,Tools,0304,98.99,Arrow Engineering Supply Co Ltd,100016,23/08/2012,10171435
Housing Revenue Account ,Unplanned Maintenance and Repair,UMR00,R&M External Contractors,0100,4467.55,AWM Electrical Contractors Ltd,100051,16/08/2012,10171820
Housing Revenue Account ,Unplanned Maintenance and Repair,UMR00,R&M External Contractors,0100,246.59,AWM Electrical Contractors Ltd,100051,23/08/2012,10171982
Capital Program ,Rewiring,HCE20,Capital Contract Payments,5000,1613.00,AWM Electrical Contractors Ltd,100051,23/08/2012,10171982
Housing Revenue Account ,Unplanned Maintenance and Repair,UMR00,R&M External Contractors,0100,4951.71,AWM Electrical Contractors Ltd,100051,23/08/2012,10172252
Housing Revenue Account ,Unplanned Maintenance and Repair,UMR00,R&M External Contractors,0100,1683.67,AWM Electrical Contractors Ltd,100051,23/08/2012,10172253
Resources & Corporate Governance,Corporate Property R&M,CPA01,R&M External Contractors,0100,478.00,Adt Fire & Security plc,100070,23/08/2012,10171806
Resources & Corporate Governance,Corporate Property R&M,CPA01,R&M External Contractors,0100,478.00,Adt Fire & Security plc,100070,23/08/2012,10171808
Housing Revenue Account ,Unplanned Maintenance and Repair,UMR00,R&M External Contractors,0100,655.39,Andy Woods Landscapes,100078,02/08/2012,10171327
Housing Revenue Account ,Unplanned Maintenance and Repair,UMR00,R&M External Contractors,0100,636.49,Andy Woods Landscapes,100078,16/08/2012,10171985
Housing Revenue Account ,Unplanned Maintenance and Repair,UMR00,R&M External Contractors,0100,487.36,Andy Woods Landscapes,100078,23/08/2012,10172048
Capital Program ,Kitchen Modifications,HIK10,Capital Contract Payments,5000,2297.86,A C E Carpentry & Joinery Contractors Ltd,100085,09/08/2012,10170816
Housing Revenue Account ,Unplanned Maintenance and Repair,UMR00,R&M External Contractors,0100,3557.30,G G Batchelor & Son Ltd,100139,02/08/2012,10170399
Economy Development & Culture,Car Parks General,CPK01,Maintenance of Equipment,0301,691.74,Cale Briparc Ltd,100158,30/08/2012,10172464
Resources & Corporate Governance ,Council Tax and NNDR Collection,CTX01,External Contractor & Operator,0742,350.01,Bristow & Sutor,100159,02/08/2012,10171228
Resources & Corporate Governance ,Council Tax and NNDR Collection,CTX01,External Contractor & Operator,0742,87.50,Bristow & Sutor,100159,09/08/2012,10171412
Resources & Corporate Governance ,Council Tax and NNDR Collection,CTX01,External Contractor & Operator,0742,67.00,Bristow & Sutor,100159,16/08/2012,10171886
Housing Revenue Account ,Control Centre (HRA),CCE00,New Equipment,0300,49.56,British Telecommunications Plc,100161,09/08/2012,10170068
Economy Development & Culture,Art Gallery and Museum,AGM00,Telephone Expenses,0371,209.22,British Telecommunications Plc,100161,09/08/2012,10170068
Resources & Corporate Governance ,Customer and Information Strategy,CIS10,Telephone Expenses,0371,1018.25,British Telecommunications Plc,100161,09/08/2012,10170068
Resources & Corporate Governance ,Civic Responsibilities,CIV00,Telephone Expenses,0371,44.88,British Telecommunications Plc,100161,09/08/2012,10170068
Economy Development & Culture,Car Parks General,CPK01,Telephone Expenses,0371,17.61,British Telecommunications Plc,100161,09/08/2012,10170068
Resources & Corporate Governance ,Council Tax and NNDR Collection,CTX01,Telephone Expenses,0371,41.42,British Telecommunications Plc,100161,09/08/2012,10170068
Economy Development & Culture,Decrim. of Car Parking on street parking,DPE02,Telephone Expenses,0371,70.42,British Telecommunications Plc,100161,09/08/2012,10170068
Sustainable Inclusive Communities,Housing Benefit Administration,HBA00,Telephone Expenses,0371,37.90,British Telecommunications Plc,100161,09/08/2012,10170068
Sustainable Environment ,Caldecott Park/Town Centre Area,PKS00,Telephone Expenses,0371,49.96,British Telecommunications Plc,100161,09/08/2012,10170068
Resources & Corporate Governance ,Central Telephone Service,TEL00,Telephone Expenses,0371,151.60,British Telecommunications Plc,100161,09/08/2012,10170068
Economy Development & Culture,Visitor Centre,VSC00,Telephone Expenses,0371,151.96,British Telecommunications Plc,100161,09/08/2012,10170068
Resources & Corporate Governance ,Central Telephone Service,TEL00,Telephone Expenses,0371,4114.00,British Telecommunications Plc,100161,09/08/2012,10171491
Housing Revenue Account ,Control Centre (HRA),CCE00,Maintenance of Equipment,0301,2793.10,British Telecommunications Plc,100161,23/08/2012,10171988
Housing Revenue Account ,Control Centre (HRA),CCE00,Telephone Expenses,0371,424.08,British Telecommunications Plc,100161,30/08/2012,10172344
Resources & Corporate Governance,Corporate Property R&M,CPA01,R&M External Contractors,0100,460.00,R Buchan,100164,16/08/2012,10171539
Housing Revenue Account ,Unplanned Maintenance and Repair,UMR00,R&M External Contractors,0100,1989.12,Bowen Builders,100241,09/08/2012,10171403
Housing Revenue Account ,Unplanned Maintenance and Repair,UMR00,R&M External Contractors,0100,1025.60,Bowen Builders,100241,09/08/2012,10171404
Housing Revenue Account ,Unplanned Maintenance and Repair,UMR00,R&M External Contractors,0100,826.18,Bowen Builders,100241,09/08/2012,10171642
Housing Revenue Account ,Unplanned Maintenance and Repair,UMR00,R&M External Contractors,0100,2442.20,Bowen Builders,100241,23/08/2012,10171980
Resources & Corporate Governance,Corporate Property R&M,CPA01,R&M External Contractors,0100,636.48,Bowen Builders,100241,23/08/2012,10171981
Housing Revenue Account ,Unplanned Maintenance and Repair,UMR00,R&M External Contractors,0100,2742.87,Bowen Builders,100241,23/08/2012,10172250
Capital Program ,Disabled Adaptations,HCR01,Capital Contract Payments,5000,1285.00,Bowen Builders,100241,23/08/2012,10172250
Housing Revenue Account ,Unplanned Maintenance and Repair,UMR00,R&M External Contractors,0100,654.20,Barron McCann Ltd,100248,02/08/2012,10171330
Capital Program ,Corporate Property Enhancements,CPE00,Capital Contract Payments,5000,609.85,Barron McCann Ltd,100248,30/08/2012,10172041
Resources & Corporate Governance ,WSU Depot,WDP00,Messing Facilities,0332,515.17,Charles Watts Engineering Ltd,100302,23/08/2012,10172079
Resources & Corporate Governance,Corporate Property R&M,CPA01,R&M External Contractors,0100,1492.13,Chillaire Service & Maintenance Ltd,100305,23/08/2012,10171958
Resources & Corporate Governance,Corporate Property R&M,CPA01,R&M External Contractors,0100,1110.87,Chillaire Service & Maintenance Ltd,100305,23/08/2012,10171992
Resources & Corporate Governance,Corporate Property R&M,CPA01,R&M External Contractors,0100,7656.00,Chillaire Service & Maintenance Ltd,100305,30/08/2012,10172399
Resources & Corporate Governance ,Human Resources Centralised Services,RES31,Training fees,0011,1850.00,Coventry City Council,100320,16/08/2012,10171785
Economy Development & Culture,Art Gallery and Museum,AGM00,Contract Cleaning,0170,307.32,OCS Group UK Ltd t/a Cannon,100436,23/08/2012,10171724
Resources & Corporate Governance ,Town Hall,OFF00,Contract Cleaning,0170,355.68,OCS Group UK Ltd t/a Cannon,100436,23/08/2012,10171724
Economy Development & Culture,Decrim. of Car Parking on street parking,DPE02,Other Miscellaneous Expenses,0444,19.80,OCS Group UK Ltd t/a Cannon,100436,23/08/2012,10171724
Sustainable Environment ,Clinical Waste,REF04,External Contractor & Operator,0742,558.95,OCS Group UK Ltd t/a Cannon,100436,16/08/2012,10171761
Resources & Corporate Governance,Corporate Property R&M,CPA01,R&M External Contractors,0100,5071.00,Dunchurch Services (Rugby) Ltd,100565,30/08/2012,10171829
Resources & Corporate Governance,Corporate Property R&M,CPA01,R&M External Contractors,0100,18033.00,Dunchurch Services (Rugby) Ltd,100565,30/08/2012,10171930
Capital Program ,Disabled Facilities Grant,REN01,Capital Grants,5014,1572.00,Bob Doyle,100575,30/08/2012,10171994
Housing Revenue Account ,Unplanned Maintenance and Repair,UMR00,R&M External Contractors,0100,1712.28,JADA Building & Maintenance Services Ltd,100583,02/08/2012,10171087
Capital Program ,Fire Risk Assessment,HCE18,Capital Contract Payments,5000,1377.24,JADA Building & Maintenance Services Ltd,100583,02/08/2012,10171087
Capital Program ,Disabled Adaptations,HCR01,Capital Contract Payments,5000,372.78,JADA Building & Maintenance Services Ltd,100583,02/08/2012,10171087
Housing Revenue Account ,Unplanned Maintenance and Repair,UMR00,R&M External Contractors,0100,5197.30,JADA Building & Maintenance Services Ltd,100583,16/08/2012,10171643
Housing Revenue Account ,Estate Management,MAN22,Estates,0457,122.55,JADA Building & Maintenance Services Ltd,100583,16/08/2012,10171643
Capital Program ,Bathroom Modifications,HIS01,Capital Contract Payments,5000,7485.00,JADA Building & Maintenance Services Ltd,100583,23/08/2012,10171939
Capital Program ,Bathroom Modifications,HIS01,Capital Contract Payments,5000,12475.00,JADA Building & Maintenance Services Ltd,100583,23/08/2012,10172088
Housing Revenue Account ,Unplanned Maintenance and Repair,UMR00,R&M External Contractors,0100,6149.96,JADA Building & Maintenance Services Ltd,100583,23/08/2012,10172153
Capital Program ,Disabled Adaptations,HCR01,Capital Contract Payments,5000,16.62,JADA Building & Maintenance Services Ltd,100583,23/08/2012,10172153
Economy Development & Culture,AGM Exhibitions/Outreach,AGM02,Other Miscellaneous Expenses,0444,568.04,Dulux Decorator Centres,100597,30/08/2012,10172521
Housing Revenue Account ,Repainting Schemes,UMR02,R&M External Contractors,0100,2430.15,Lee Davies Decorating,100600,09/08/2012,10171400
Housing Revenue Account ,Sheltered Housing Team,MAN21,Estates,0457,85.14,Lee Davies Decorating,100600,09/08/2012,10171400
Housing Revenue Account ,Unplanned Maintenance and Repair,UMR00,R&M External Contractors,0100,1169.15,Lee Davies Decorating,100600,23/08/2012,10171987
Housing Revenue Account ,Repainting Schemes,UMR02,R&M External Contractors,0100,2532.14,Lee Davies Decorating,100600,23/08/2012,10171987
Resources & Corporate Governance,Corporate Property Central Utilities,CPA02,Gas,0131,841.45,ESPO,100641,23/08/2012,10171962
Housing Revenue Account ,Tanser Court AP,AGP17,Gas,0131,742.54,ESPO,100641,23/08/2012,10171966
,Balance Sheet,BS,Car Leasing Scheme,9244,3891.76,Lex Autolease Ltd,100844,09/08/2012,10171559
,Balance Sheet,BS,Car Leasing Scheme,9244,3112.18,Lex Autolease Ltd,100844,09/08/2012,10171560
Resources & Corporate Governance ,Town Hall,OFF00,Materials,0303,433.50,Greenham,100890,02/08/2012,10170829
Resources & Corporate Governance ,Town Hall,OFF00,Materials,0303,831.34,Greenham,100890,23/08/2012,10171847
Housing Revenue Account ,Estate Management,MAN22,Movement Incentives,0454,560.00,David Gilkes & Sons Ltd,100913,30/08/2012,10172461
Sustainable Environment ,Caldecott Park/Town Centre Area,PKS00,Maintenance of Equipment,0301,781.20,GB Sport & Leisure UK Ltd,100920,16/08/2012,10171381
Resources & Corporate Governance ,Human Resources Centralised Services,RES31,Recruitment Expenses,0012,456.49,TMP (UK) LTD,100972,16/08/2012,10171793
Resources & Corporate Governance ,Human Resources Centralised Services,RES31,Recruitment Expenses,0012,423.86,TMP (UK) LTD,100972,23/08/2012,10172039
Resources & Corporate Governance ,Town Hall,OFF00,Furniture,0302,2349.82,IE Office Equipment Ltd,101114,30/08/2012,10171774
Resources & Corporate Governance ,Highways,WHG00,Materials,0303,618.24,Instarmac Group Plc,101128,30/08/2012,10172425
Resources & Corporate Governance ,Customer and Information Strategy,CIS10,Hardware Maintenance,0376,1650.00,Insite Ltd,101144,09/08/2012,10171513
Economy Development & Culture,Ken Marriott Leisure Centre,KML00,Other Miscellaneous Expenses,0444,2335.00,DC Leisure,101195,02/08/2012,10171025
Resources & Corporate Governance ,Grounds Maintenance,WGM00,External Contractor & Operator,0742,7344.00,K A Hicks,101216,23/08/2012,10172219
Resources & Corporate Governance ,Grounds Maintenance,WGM00,External Contractor & Operator,0742,7344.00,K A Hicks,101216,23/08/2012,10172220
Sustainable Environment ,Caldecott Park/Town Centre Area,PKS00,R&M External Contractors,0100,890.00,M & J Engineers Ltd,101278,09/08/2012,10171443
Housing Revenue Account ,Unplanned Maintenance and Repair,UMR00,R&M External Contractors,0100,1162.48,MBG Decorators (Rugby Ltd),101288,09/08/2012,10171644
Resources & Corporate Governance,Corporate Property R&M,CPA01,R&M External Contractors,0100,680.00,MBG Decorators (Rugby Ltd),101288,23/08/2012,10171905
Housing Revenue Account ,Repainting Schemes,UMR02,R&M External Contractors,0100,7834.11,MBG Decorators (Rugby Ltd),101288,23/08/2012,10171984
Resources & Corporate Governance,Handy man,WHM00,Materials,0303,420.00,Melbros Ltd,101291,16/08/2012,10171146
Resources & Corporate Governance,Handy man,WHM00,Materials,0303,495.00,Melbros Ltd,101291,02/08/2012,10171181
Resources & Corporate Governance,Handy man,WHM00,Materials,0303,1201.53,Melbros Ltd,101291,23/08/2012,10171464
Resources & Corporate Governance,Handy man,WHM00,Materials,0303,539.40,Melbros Ltd,101291,23/08/2012,10171465
Resources & Corporate Governance,Handy man,WHM00,External Contractor & Operator,0742,562.70,M W D Services Ltd,101293,16/08/2012,10171889
Capital Program ,Open Spaces Refurbishment,LEI08,Capital Contract Payments,5000,440.00,Midland Signs (Leicester) Ltd,101295,16/08/2012,10171711
Capital Program ,Parish and Rural Capital Spending,CGR03,Capital Grants,5014,5624.10,Newton & Biggin Parish Council,101366,30/08/2012,10172000
Resources & Corporate Governance ,Grounds Maintenance,WGM00,Materials,0303,1644.00,Nomix Enviro Ltd,101369,16/08/2012,10171208
Economy Development & Culture,Visitor Centre,VSC00,Events Tickets - Zero Rated,1405,1783.57,National Express Ltd,101392,02/08/2012,10171345
Resources & Corporate Governance,Central Business Support Services,CSS15,External Printing,0352,989.00,Polycopy,101428,02/08/2012,10171103
Resources & Corporate Governance,Central Business Support Services,CSS15,External Printing,0352,500.00,Polycopy,101428,02/08/2012,10171309
Sustainable Environment,Regulatory Services,REG00,Vehicle Running Costs,0201,430.00,Post Office Ltd,101429,09/08/2012,10171654
Resources & Corporate Governance ,Highways,WHG00,Vehicle Running Costs,0201,650.00,Post Office Ltd,101429,09/08/2012,10171654
Resources & Corporate Governance,Handy man,WHM00,Vehicle Running Costs,0201,215.00,Post Office Ltd,101429,09/08/2012,10171654
Resources & Corporate Governance ,Street Cleansing,WSC00,Vehicle Running Costs,0201,430.00,Post Office Ltd,101429,09/08/2012,10171654
Resources & Corporate Governance ,Domestic Waste Collection,WWC00,Vehicle Running Costs,0201,650.00,Post Office Ltd,101429,23/08/2012,10172274
Sustainable Environment ,Caldecott Park/Town Centre Area,PKS00,R&M External Contractors,0100,512.52,PJT Pumping Services,101438,09/08/2012,10171507
Sustainable Inclusive Communities,Sewage Disposal Plant,SDP00,R&M External Contractors,0100,520.28,PJT Pumping Services,101438,09/08/2012,10171508
Sustainable Inclusive Communities,Woodside Park,TVR00,Electricity,0130,1566.64,E.ON,101479,09/08/2012,10169648
Sustainable Environment ,Caldecott Park/Town Centre Area,PKS00,R&M External Contractors,0100,550.00,Post To Post Fencing,101490,16/08/2012,10171613
Capital Program ,Heating Upgrades,HIM01,Capital Contract Payments,5000,4606.00,Reeds Plumbing & Heating Contractors Ltd,101504,02/08/2012,10170935
Capital Program ,Heating Upgrades,HIM01,Capital Contract Payments,5000,36848.00,Reeds Plumbing & Heating Contractors Ltd,101504,16/08/2012,10171306
Housing Revenue Account ,Unplanned Maintenance and Repair,UMR00,R&M External Contractors,0100,7425.00,Reeds Plumbing & Heating Contractors Ltd,101504,09/08/2012,10171647
Resources & Corporate Governance ,Garage Internal,WVR01,Materials,0303,585.60,Rencar Services,101505,23/08/2012,10171949
Housing Revenue Account ,Supervision and Management General,MAN00,Council Tax,0142,891.50,Rugby Borough Council,101516,16/08/2012,10171925
Economy Development & Culture,Art Gallery and Museum,AGM00,Postage & Distribution,0370,8.60,Royal Mail,101554,09/08/2012,10170606
Economy Development & Culture,Building Control Services,BCS00,Postage & Distribution,0370,7.38,Royal Mail,101554,09/08/2012,10170606
Economy Development & Culture,Building Regulation Fee Earning Account,BCS99,Postage & Distribution,0370,9.79,Royal Mail,101554,09/08/2012,10170606
Economy Development & Culture,Car Parks General,CPK01,Postage & Distribution,0370,55.81,Royal Mail,101554,09/08/2012,10170606
Resources & Corporate Governance,Central Business Support Services,CSS15,Postage & Distribution,0370,565.44,Royal Mail,101554,09/08/2012,10170606
Resources & Corporate Governance ,Council Tax and NNDR Collection,CTX01,Postage & Distribution,0370,150.39,Royal Mail,101554,09/08/2012,10170606
Economy Development & Culture,Decrim. of Car Parking on street parking,DPE02,Postage & Distribution,0370,223.22,Royal Mail,101554,09/08/2012,10170606
Resources & Corporate Governance ,Electoral Registration,ERG00,Postage & Distribution,0370,207.76,Royal Mail,101554,09/08/2012,10170606
Sustainable Inclusive Communities,Housing Benefit Administration,HBA00,Postage & Distribution,0370,149.45,Royal Mail,101554,09/08/2012,10170606
Housing Revenue Account ,Supervision and Management General,MAN00,Postage & Distribution,0370,57.00,Royal Mail,101554,09/08/2012,10170606
Economy Development & Culture,Planning General/Income,PLN00,Postage & Distribution,0370,358.88,Royal Mail,101554,09/08/2012,10170606
Economy Development & Culture,Visitor Centre,VSC00,Postage & Distribution,0370,2.77,Royal Mail,101554,09/08/2012,10170606
Resources & Corporate Governance ,General Administration,WAD00,Postage & Distribution,0370,88.71,Royal Mail,101554,09/08/2012,10170606
Resources & Corporate Governance ,Electoral Registration,ERG00,Postage & Distribution,0370,810.77,Royal Mail,101554,23/08/2012,10170616
Resources & Corporate Governance ,Electoral Registration,ERG00,Postage & Distribution,0370,1791.54,Royal Mail,101554,23/08/2012,10170944
Economy Development & Culture,Art Gallery and Museum,AGM00,Postage & Distribution,0370,3.59,Royal Mail,101554,16/08/2012,10171305
Economy Development & Culture,Building Control Services,BCS00,Postage & Distribution,0370,0.40,Royal Mail,101554,16/08/2012,10171305
Economy Development & Culture,Building Regulation Fee Earning Account,BCS99,Postage & Distribution,0370,0.53,Royal Mail,101554,16/08/2012,10171305
Economy Development & Culture,Car Parks General,CPK01,Postage & Distribution,0370,33.74,Royal Mail,101554,16/08/2012,10171305
Resources & Corporate Governance,Central Business Support Services,CSS15,Postage & Distribution,0370,425.03,Royal Mail,101554,16/08/2012,10171305
Resources & Corporate Governance ,Council Tax and NNDR Collection,CTX01,Postage & Distribution,0370,149.14,Royal Mail,101554,16/08/2012,10171305
Economy Development & Culture,Decrim. of Car Parking on street parking,DPE02,Postage & Distribution,0370,134.95,Royal Mail,101554,16/08/2012,10171305
Resources & Corporate Governance ,Electoral Registration,ERG00,Postage & Distribution,0370,201.64,Royal Mail,101554,16/08/2012,10171305
Sustainable Inclusive Communities,Housing Benefit Administration,HBA00,Postage & Distribution,0370,232.25,Royal Mail,101554,16/08/2012,10171305
Housing Revenue Account ,Supervision and Management General,MAN00,Postage & Distribution,0370,74.72,Royal Mail,101554,16/08/2012,10171305
Economy Development & Culture,Planning General/Income,PLN00,Postage & Distribution,0370,237.16,Royal Mail,101554,16/08/2012,10171305
Economy Development & Culture,Visitor Centre,VSC00,Postage & Distribution,0370,7.38,Royal Mail,101554,16/08/2012,10171305
Resources & Corporate Governance ,General Administration,WAD00,Postage & Distribution,0370,45.79,Royal Mail,101554,16/08/2012,10171305
Resources & Corporate Governance ,Electoral Registration,ERG00,Postage & Distribution,0370,1619.63,Royal Mail,101554,23/08/2012,10171340
Resources & Corporate Governance ,Electoral Registration,ERG00,Postage & Distribution,0370,5254.64,Royal Mail,101554,23/08/2012,10171902
Economy Development & Culture,Art Gallery and Museum,AGM00,Postage & Distribution,0370,0.44,Royal Mail,101554,30/08/2012,10171938
Economy Development & Culture,Building Control Services,BCS00,Postage & Distribution,0370,2.43,Royal Mail,101554,30/08/2012,10171938
Economy Development & Culture,Building Regulation Fee Earning Account,BCS99,Postage & Distribution,0370,3.21,Royal Mail,101554,30/08/2012,10171938
Economy Development & Culture,Car Parks General,CPK01,Postage & Distribution,0370,51.44,Royal Mail,101554,30/08/2012,10171938
Resources & Corporate Governance,Central Business Support Services,CSS15,Postage & Distribution,0370,418.65,Royal Mail,101554,30/08/2012,10171938
Resources & Corporate Governance ,Council Tax and NNDR Collection,CTX01,Postage & Distribution,0370,11.60,Royal Mail,101554,30/08/2012,10171938
Economy Development & Culture,Decrim. of Car Parking on street parking,DPE02,Postage & Distribution,0370,205.76,Royal Mail,101554,30/08/2012,10171938
Resources & Corporate Governance ,Electoral Registration,ERG00,Postage & Distribution,0370,25.05,Royal Mail,101554,30/08/2012,10171938
Sustainable Inclusive Communities,Housing Benefit Administration,HBA00,Postage & Distribution,0370,144.30,Royal Mail,101554,30/08/2012,10171938
Housing Revenue Account ,Supervision and Management General,MAN00,Postage & Distribution,0370,73.02,Royal Mail,101554,30/08/2012,10171938
Economy Development & Culture,Planning General/Income,PLN00,Postage & Distribution,0370,192.29,Royal Mail,101554,30/08/2012,10171938
Resources & Corporate Governance ,General Administration,WAD00,Postage & Distribution,0370,57.31,Royal Mail,101554,30/08/2012,10171938
Sustainable Environment ,Caldecott Park/Town Centre Area,PKS00,Maintenance of Equipment,0301,1144.08,Record RSS Ltd,101562,16/08/2012,10171317
Resources & Corporate Governance,Handy man,WHM00,External Contractor & Operator,0742,2055.00,Rugby Plastering Services,101602,16/08/2012,10171372
Resources & Corporate Governance,Handy man,WHM00,External Contractor & Operator,0742,432.00,Rugby Plastering Services,101602,16/08/2012,10171536
Housing Revenue Account ,Unplanned Maintenance and Repair,UMR00,R&M External Contractors,0100,2876.79,Rugby Plastering Services,101602,16/08/2012,10171817
Resources & Corporate Governance,Corporate Property Central Utilities,CPA02,Water Services,0143,1192.55,Severn Trent Water Ltd,101610,02/08/2012,10170957
Resources & Corporate Governance,Corporate Property Central Utilities,CPA02,Water Services,0143,1005.60,Severn Trent Water Ltd,101610,09/08/2012,10171251
Resources & Corporate Governance ,WSU Depot,WDP00,Water Services,0143,6835.90,Severn Trent Water Ltd,101610,16/08/2012,10171800
Sustainable Environment ,Crime and Disorder Activities,CAD00,Other Miscellaneous Expenses,0444,1500.00,Shilton Parish Council,101613,23/08/2012,10172005
Capital Program ,Disabled Adaptations,HCR01,Capital Contract Payments,5000,4107.00,Stannah Stairlifts Ltd,101623,02/08/2012,10170860
Capital Program ,Disabled Facilities Grant,REN01,Capital Grants,5014,1830.00,Stannah Stairlifts Ltd,101623,30/08/2012,10171634
Resources & Corporate Governance ,Human Resources Centralised Services,RES31,Training fees,0011,481.95,St John Ambulance,101669,30/08/2012,10172429
Resources & Corporate Governance ,Grounds Maintenance,WGM00,Vehicle Running Costs,0201,70.00,HI-Q Motorway,101736,02/08/2012,10170996
Resources & Corporate Governance ,Street Cleansing,WSC00,Vehicle Running Costs,0201,132.00,HI-Q Motorway,101736,02/08/2012,10170996
Resources & Corporate Governance ,Domestic Waste Collection,WWC00,Vehicle Running Costs,0201,398.00,HI-Q Motorway,101736,02/08/2012,10170996
Resources & Corporate Governance ,Trade Waste Collection,WWC01,Vehicle Running Costs,0201,199.00,HI-Q Motorway,101736,02/08/2012,10170996
Resources & Corporate Governance ,Street Cleansing,WSC00,Vehicle Running Costs,0201,448.98,HI-Q Motorway,101736,02/08/2012,10171041
Resources & Corporate Governance ,Domestic Waste Collection,WWC00,Vehicle Running Costs,0201,1108.50,HI-Q Motorway,101736,02/08/2012,10171041
Resources & Corporate Governance ,Garage Internal,WVR01,Materials,0303,90.00,HI-Q Motorway,101736,02/08/2012,10171041
Resources & Corporate Governance ,Domestic Waste Collection,WWC00,Vehicle Running Costs,0201,318.82,HI-Q Motorway,101736,02/08/2012,10171193
Resources & Corporate Governance ,Trade Waste Collection,WWC01,Vehicle Running Costs,0201,234.00,HI-Q Motorway,101736,02/08/2012,10171193
Resources & Corporate Governance ,Highways,WHG00,Vehicle Running Costs,0201,425.50,HI-Q Motorway,101736,02/08/2012,10171194
Resources & Corporate Governance ,Domestic Waste Collection,WWC00,Vehicle Repair and Maintenance,0200,875.00,Transloader Services,101766,23/08/2012,10171950
Capital Program ,Pettiver Crescent,PCH00,Capital Contract Payments,5000,774.00,Warwickshire County Council,101840,09/08/2012,10171419
Resources & Corporate Governance ,General Financial Services,GFS00,Subscriptions,0421,3340.05,West Midlands Councils,101880,30/08/2012,10172373
Resources & Corporate Governance ,Land Charges,LCH00,Payments to Other Local Authorities,0710,8666.70,Warwickshire County Council,101893,02/08/2012,10171230
Economy Development & Culture,Decrim. of Car Parking on street parking,DPE02,Contributions & Donations,1100,122521.00,Warwickshire County Council,101893,02/08/2012,10171250
Resources & Corporate Governance ,Trade Waste Collection,WWC01,Removal of Waste - WCC,0711,47127.96,Warwickshire County Council,101893,02/08/2012,10171266
Housing Revenue Account ,Unplanned Maintenance and Repair,UMR00,R&M External Contractors,0100,2328.43,Warwickshire County Council,101893,16/08/2012,10171900
Housing Revenue Account ,Unplanned Maintenance and Repair,UMR00,R&M External Contractors,0100,1460.13,Darren Wilson Roofing Ltd,101911,30/08/2012,10172360
Housing Revenue Account ,Unplanned Maintenance and Repair,UMR00,R&M External Contractors,0100,1083.81,Adroit Services Ltd,101939,16/08/2012,10169429
Capital Program ,Heating Upgrades,HIM01,Capital Contract Payments,5000,10380.00,Adroit Services Ltd,101939,09/08/2012,10171307
Housing Revenue Account ,Unplanned Maintenance and Repair,UMR00,R&M External Contractors,0100,1057.70,Adroit Services Ltd,101939,02/08/2012,10171326
Housing Revenue Account ,Stacey Court AP,AGP12,New Equipment,0300,23.35,Adroit Services Ltd,101939,02/08/2012,10171326
Capital Program ,Heating Upgrades,HIM01,Capital Contract Payments,5000,8304.00,Adroit Services Ltd,101939,09/08/2012,10171382
Housing Revenue Account ,Unplanned Maintenance and Repair,UMR00,R&M External Contractors,0100,1004.22,Adroit Services Ltd,101939,09/08/2012,10171402
Capital Program ,Electric to Gas Conversions,HIM04,Capital Contract Payments,5000,2267.33,Adroit Services Ltd,101939,09/08/2012,10171402
Housing Revenue Account ,Unplanned Maintenance and Repair,UMR00,R&M External Contractors,0100,1141.71,Adroit Services Ltd,101939,16/08/2012,10171821
Housing Revenue Account ,Unplanned Maintenance and Repair,UMR00,R&M External Contractors,0100,937.73,Adroit Services Ltd,101939,23/08/2012,10172043
Capital Program ,Heating Upgrades,HIM01,Capital Contract Payments,5000,12456.00,Adroit Services Ltd,101939,30/08/2012,10172159
Resources & Corporate Governance ,"Communications, Consultation and Information Team",BTR20,Publicity & Marketing,0377,530.19,Johnston Publishing Ltd,107468,02/08/2012,10171010
Resources & Corporate Governance ,"Communications, Consultation and Information Team",BTR20,Publicity & Marketing,0377,494.19,Johnston Publishing Ltd,107468,09/08/2012,10171487
Housing Revenue Account ,Miscellaneous Income,INC00,External Legal Costs,0741,520.00,REDACTED PERSONAL DATA,108042,02/08/2012,10169398
Resources & Corporate Governance ,Human Resources,RES30,Payments to Other Local Authorities,0710,4107.27,Nuneaton & Bedworth Borough Council,108060,23/08/2012,10172002
Economy Development & Culture,Art Gallery and Museum,AGM00,Development Activities,0450,2000.00,Live & Local Ltd,108138,09/08/2012,10171385
Resources & Corporate Governance ,Central Telephone Service,TEL00,Telephone Expenses,0371,884.85,British Telecommunications PLC,108425,23/08/2012,10172137
Resources & Corporate Governance,Corporate Property R&M,CPA01,R&M External Contractors,0100,750.00,W A Adams R W A/C,108937,23/08/2012,10171655
Sustainable Environment ,Crime and Disorder Activities,CAD00,Other Miscellaneous Expenses,0444,2000.00,CSWP Ltd,109679,16/08/2012,10170382
Resources & Corporate Governance ,Garage Internal,WVR01,Materials,0303,24725.91,Watson Petroleum,110361,02/08/2012,10171302
Resources & Corporate Governance ,Garage Internal,WVR01,Materials,0303,3351.00,Watson Petroleum,110361,09/08/2012,10171336
Resources & Corporate Governance ,Garage Internal,WVR01,Materials,0303,34657.84,Watson Petroleum,110361,30/08/2012,10172513
Resources & Corporate Governance,Handy man,WHM00,Materials,0303,608.62,Linnell Bros. Ltd,110449,16/08/2012,10171532
Economy Development & Culture,Visitor Centre,VSC00,Events Tickets - Standard Rated,1404,1005.75,JSL Productions,110683,23/08/2012,10172235
Resources & Corporate Governance,Customer Support Services,CSS00,Payments to Other Local Authorities,0710,12635.97,Warwick District Council,111228,30/08/2012,10172348
Resources & Corporate Governance,Central Business Support Services,CSS15,Photocopying,0354,490.42,Ricoh UK Limited,111532,02/08/2012,10170784
Resources & Corporate Governance ,Maintenance of Customer Services Systems,CIS21,Software Maintenance,0374,2007.24,Civica UK Ltd,112724,30/08/2012,10172246
Resources & Corporate Governance ,Domestic Waste Collection,WWC00,Agency Staff,0003,508.37,Extra Personnel Limited,112996,02/08/2012,10171053
Resources & Corporate Governance ,Domestic Waste Collection,WWC00,Agency Staff,0003,1016.74,Extra Personnel Limited,112996,23/08/2012,10172040
Resources & Corporate Governance ,Domestic Waste Collection,WWC00,Agency Staff,0003,1016.74,Extra Personnel Limited,112996,30/08/2012,10172407
Sustainable Environment ,Caldecott Park/Town Centre Area,PKS00,External Contractor & Operator,0742,233.28,Acorn Environmental Management Group Ltd,113313,09/08/2012,10171659
Resources & Corporate Governance ,TREE WORKS,WGM01,External Contractor & Operator,0742,300.00,Acorn Environmental Management Group Ltd,113313,09/08/2012,10171659
Resources & Corporate Governance ,Customer and Information Strategy,CIS10,Software Maintenance,0374,9718.60,Ebase Technology Limited,114286,02/08/2012,10170976
Economy Development & Culture,Ken Marriott Leisure Centre,KML00,External Contractor & Operator,0742,25181.06,DC Leisure Management Ltd (Otium),114443,09/08/2012,10171511
Housing Revenue Account ,Unplanned Maintenance and Repair,UMR00,R&M External Contractors,0100,1341.40,Temple Lifts Ltd,114738,23/08/2012,10171347
Resources & Corporate Governance ,Grounds Maintenance,WGM00,Contract Hire,0220,625.00,T H White Ltd,116311,23/08/2012,10171942
Sustainable Inclusive Communities,Local Council Tax Support,HBA10,Other,0763,4400.00,Airey Consultancy Services Ltd,117127,02/08/2012,10171282
Economy Development & Culture,Economic Development General,ECD00,Development Activities,0450,1297.00,Hi-Lite Electrical Ltd,118814,02/08/2012,10170011
Resources & Corporate Governance,Corporate Property Central Utilities,CPA02,Electricity,0130,6198.70,Southern Electric,118976,02/08/2012,10171077
Resources & Corporate Governance ,WSU Depot,WDP00,Electricity,0130,4012.53,Southern Electric,118976,02/08/2012,10171077
Resources & Corporate Governance,Corporate Property Central Utilities,CPA02,Electricity,0130,7607.70,Southern Electric,118976,23/08/2012,10171894
Resources & Corporate Governance,Corporate Property Central Utilities,CPA02,Electricity,0130,-730.22,Southern Electric,118976,23/08/2012,10171999
Housing Revenue Account ,Unplanned Maintenance and Repair,UMR00,R&M External Contractors,0100,603.00,Pro-Tec Security Systems,119999,23/08/2012,10172042
Resources & Corporate Governance,Handy man,WHM00,Agency Staff,0003,303.40,G-Staff Ltd,120173,02/08/2012,10170778
Resources & Corporate Governance ,Street Cleansing,WSC00,Agency Staff,0003,294.12,G-Staff Ltd,120173,02/08/2012,10170778
Resources & Corporate Governance ,Domestic Waste Collection,WWC00,Agency Staff,0003,1000.74,G-Staff Ltd,120173,02/08/2012,10170778
Resources & Corporate Governance,Handy man,WHM00,Agency Staff,0003,303.40,G-Staff Ltd,120173,02/08/2012,10170779
Resources & Corporate Governance ,Domestic Waste Collection,WWC00,Agency Staff,0003,2254.21,G-Staff Ltd,120173,02/08/2012,10170779
Resources & Corporate Governance,Handy man,WHM00,Agency Staff,0003,303.40,G-Staff Ltd,120173,02/08/2012,10171015
Resources & Corporate Governance ,Street Cleansing,WSC00,Agency Staff,0003,481.13,G-Staff Ltd,120173,02/08/2012,10171015
Resources & Corporate Governance ,Domestic Waste Collection,WWC00,Agency Staff,0003,1066.15,G-Staff Ltd,120173,02/08/2012,10171015
Resources & Corporate Governance,Handy man,WHM00,Agency Staff,0003,303.40,G-Staff Ltd,120173,16/08/2012,10171537
Resources & Corporate Governance ,Street Cleansing,WSC00,Agency Staff,0003,500.18,G-Staff Ltd,120173,16/08/2012,10171537
Resources & Corporate Governance ,Domestic Waste Collection,WWC00,Agency Staff,0003,1692.98,G-Staff Ltd,120173,16/08/2012,10171537
Resources & Corporate Governance,Handy man,WHM00,Agency Staff,0003,303.40,G-Staff Ltd,120173,16/08/2012,10171778
Resources & Corporate Governance ,Street Cleansing,WSC00,Agency Staff,0003,428.71,G-Staff Ltd,120173,16/08/2012,10171778
Resources & Corporate Governance ,Domestic Waste Collection,WWC00,Agency Staff,0003,1734.44,G-Staff Ltd,120173,16/08/2012,10171778
Resources & Corporate Governance,Handy man,WHM00,Agency Staff,0003,241.90,G-Staff Ltd,120173,23/08/2012,10172037
Resources & Corporate Governance ,Street Cleansing,WSC00,Agency Staff,0003,368.88,G-Staff Ltd,120173,23/08/2012,10172037
Resources & Corporate Governance ,Domestic Waste Collection,WWC00,Agency Staff,0003,1837.40,G-Staff Ltd,120173,23/08/2012,10172037
Resources & Corporate Governance ,Toilet Cleaning,WBC01,Agency Staff,0003,276.90,G-Staff Ltd,120173,30/08/2012,10172400
Resources & Corporate Governance ,Highways,WHG00,Agency Staff,0003,123.00,G-Staff Ltd,120173,30/08/2012,10172400
Resources & Corporate Governance,Handy man,WHM00,Agency Staff,0003,241.90,G-Staff Ltd,120173,30/08/2012,10172400
Resources & Corporate Governance ,Street Cleansing,WSC00,Agency Staff,0003,443.67,G-Staff Ltd,120173,30/08/2012,10172400
Resources & Corporate Governance ,Domestic Waste Collection,WWC00,Agency Staff,0003,1590.45,G-Staff Ltd,120173,30/08/2012,10172400
Resources & Corporate Governance ,Street Cleansing,WSC00,Vehicle Repair and Maintenance,0200,253.00,Smartpower,121369,16/08/2012,10171742
Resources & Corporate Governance ,Domestic Waste Collection,WWC00,Vehicle Repair and Maintenance,0200,253.00,Smartpower,121369,16/08/2012,10171742
Capital Program ,Housing Management System,HCE08,IT Capital Expenditure,5025,480.00,Northgate Information Solutions UK Ltd,121606,09/08/2012,10171223
Capital Program ,Housing Management System,HCE08,IT Capital Expenditure,5025,960.00,Northgate Information Solutions UK Ltd,121606,09/08/2012,10171365
Resources & Corporate Governance ,Maintenance of Customer Services Systems,CIS21,Software Maintenance,0374,7091.29,Northgate Information Solutions UK Ltd,121606,23/08/2012,10171897
Resources & Corporate Governance ,Maintenance of Customer Services Systems,CIS21,Software Maintenance,0374,709.30,Northgate Information Solutions UK Ltd,121606,23/08/2012,10171903
Resources & Corporate Governance ,Maintenance of Customer Services Systems,CIS21,Software Maintenance,0374,1773.26,Northgate Information Solutions UK Ltd,121606,23/08/2012,10171990
Sustainable Environment ,Public Watercourses,LDR01,External Contractor & Operator,0742,646.02,REDACTED PERSONAL DATA,121703,09/08/2012,10171557
,Balance Sheet,BS,Car Loan Scheme,9261,3500.00,Lower Street Garage,121709,16/08/2012,10171893
Resources & Corporate Governance ,Central Telephone Service,TEL00,Telephone Expenses,0371,1234.42,Cable & Wireless,123224,09/08/2012,10171490
Resources & Corporate Governance ,Grounds Maintenance,WGM00,Materials,0303,855.00,Rigby Taylor Ltd,123342,23/08/2012,10171192
Resources & Corporate Governance ,Grounds Maintenance,WGM00,Materials,0303,498.00,Rigby Taylor Ltd,123342,16/08/2012,10171429
Resources & Corporate Governance ,Grounds Maintenance,WGM00,Materials,0303,-855.00,Rigby Taylor Ltd,123342,23/08/2012,10171952
Resources & Corporate Governance ,Garage Internal,WVR01,Materials,0303,596.86,Shell U.K. Oil Products Limited,125672,09/08/2012,10171417
Resources & Corporate Governance,Handy man,WHM00,Vehicle Running Costs,0201,215.00,Guest Trucks,126437,30/08/2012,10172329
Capital Program ,Purchase of Vehicles,VHC00,Miscellaneous Capital Expenditure,5020,8500.00,Guest Trucks,126437,30/08/2012,10172329
Resources & Corporate Governance,Handy man,WHM00,Vehicle Running Costs,0201,215.00,Guest Trucks,126437,30/08/2012,10172330
Capital Program ,Purchase of Vehicles,VHC00,Miscellaneous Capital Expenditure,5020,8500.00,Guest Trucks,126437,30/08/2012,10172330
Resources & Corporate Governance,Handy man,WHM00,Vehicle Running Costs,0201,215.00,Guest Trucks,126437,30/08/2012,10172331
Capital Program ,Purchase of Vehicles,VHC00,Miscellaneous Capital Expenditure,5020,8500.00,Guest Trucks,126437,30/08/2012,10172331
Resources & Corporate Governance,Handy man,WHM00,Vehicle Running Costs,0201,215.00,Guest Trucks,126437,30/08/2012,10172332
Capital Program ,Purchase of Vehicles,VHC00,Miscellaneous Capital Expenditure,5020,8600.00,Guest Trucks,126437,30/08/2012,10172332
Resources & Corporate Governance,Handy man,WHM00,Contract Hire,0220,35.00,M P Hudson & Son,129334,02/08/2012,10171334
Resources & Corporate Governance,Handy man,WHM00,External Contractor & Operator,0742,590.00,M P Hudson & Son,129334,02/08/2012,10171334
Resources & Corporate Governance,Handy man,WHM00,Contract Hire,0220,25.00,M P Hudson & Son,129334,09/08/2012,10171484
Resources & Corporate Governance,Handy man,WHM00,External Contractor & Operator,0742,450.00,M P Hudson & Son,129334,09/08/2012,10171484
Sustainable Environment ,Caldecott Park/Town Centre Area,PKS00,External Contractor & Operator,0742,660.00,Complete Weed Control,129556,16/08/2012,10171363
Resources & Corporate Governance,Central Business Support Services,CSS15,Stationery Supplies,0350,632.60,Lyreco,129956,09/08/2012,10171370
Capital Program ,Pettiver Crescent,PCH00,Capital Contract Payments,5000,750.00,RGI Surveys,130446,09/08/2012,10171212
Resources & Corporate Governance ,Grounds Maintenance,WGM00,Materials,0303,658.50,I D Welding & Fabrications,131407,09/08/2012,10170823
,User Balance Sheet Cost Centre,BSU,Section Agreements,9865,2849.00,I D Welding & Fabrications,131407,23/08/2012,10171957
,User Balance Sheet Cost Centre,BSU,Section Agreements,9865,554.00,I D Welding & Fabrications,131407,30/08/2012,10172172
Sustainable Environment ,Caldecott Park/Town Centre Area,PKS00,External Contractor & Operator,0742,1824.00,I D Welding & Fabrications,131407,30/08/2012,10172173
Sustainable Environment ,Caldecott Park/Town Centre Area,PKS00,External Contractor & Operator,0742,860.00,I D Welding & Fabrications,131407,30/08/2012,10172546
Sustainable Environment ,Caldecott Park/Town Centre Area,PKS00,Maintenance of Equipment,0301,607.00,Sutcliffe Play Ltd,131511,16/08/2012,10170834
Capital Program ,Open Spaces Refurbishment,LEI08,Capital Contract Payments,5000,6290.00,Sutcliffe Play Ltd,131511,23/08/2012,10171389
Capital Program ,Open Spaces Refurbishment,LEI08,Capital Contract Payments,5000,8228.00,Sutcliffe Play Ltd,131511,23/08/2012,10171391
Capital Program ,Open Spaces Refurbishment,LEI08,Capital Contract Payments,5000,-1837.50,Sutcliffe Play Ltd,131511,23/08/2012,10171392
Capital Program ,Open Spaces Refurbishment,LEI08,Capital Contract Payments,5000,73500.00,Sutcliffe Play Ltd,131511,16/08/2012,10171393
Economy Development & Culture,Car Parks General,CPK01,Cash Collection,0744,118.37,Jade Security Services Ltd,131711,09/08/2012,10171552
Economy Development & Culture,Decrim. of Car Parking on street parking,DPE02,Cash Collection,0744,473.47,Jade Security Services Ltd,131711,09/08/2012,10171552
Economy Development & Culture,Car Parks General,CPK01,Cash Collection,0744,1090.52,Jade Security Services Ltd,131711,09/08/2012,10171553
Capital Program ,Disabled Facilities Grant,REN01,Capital Grants,5014,7201.75,D K Builders,131946,09/08/2012,10171501
Capital Program ,Disabled Facilities Grant,REN01,Capital Grants,5014,7201.75,D K Builders,131946,30/08/2012,10172001
Capital Program ,Disabled Facilities Grant,REN01,Capital Grants,5014,6481.75,D K Builders,131946,30/08/2012,10172441
Capital Program ,Disabled Facilities Grant,REN01,Capital Grants,5014,5000.00,D K Builders,131946,30/08/2012,10172528
Sustainable Inclusive Communities,Housing Options Team,HOT00,Rents,0140,504.00,N Mallidi,132033,23/08/2012,10171342
Resources & Corporate Governance ,Highways,WHG00,Materials,0303,1216.03,Breedon Aggregates England Limited,133309,23/08/2012,10170824
Economy Development & Culture,Art Gallery and Museum,AGM00,Consultancy Costs,0740,1557.00,Sotheby's,133445,09/08/2012,10171418
Resources & Corporate Governance,Handy man,WHM00,External Contractor & Operator,0742,525.00,Homecare Decorating,133884,23/08/2012,10170629
Housing Revenue Account ,Unplanned Maintenance and Repair,UMR00,R&M External Contractors,0100,2453.22,Sunfish Services Ltd,133886,02/08/2012,10171325
Housing Revenue Account ,Unplanned Maintenance and Repair,UMR00,R&M External Contractors,0100,1847.22,Delec Ltd,133887,02/08/2012,10171071
Housing Revenue Account ,Unplanned Maintenance and Repair,UMR00,R&M External Contractors,0100,2380.44,Delec Ltd,133887,02/08/2012,10171328
Housing Revenue Account ,Stacey Court AP,AGP12,New Equipment,0300,30.49,Delec Ltd,133887,02/08/2012,10171328
Housing Revenue Account ,Unplanned Maintenance and Repair,UMR00,R&M External Contractors,0100,1148.30,Delec Ltd,133887,16/08/2012,10171824
Housing Revenue Account ,Unplanned Maintenance and Repair,UMR00,R&M External Contractors,0100,1746.74,Delec Ltd,133887,16/08/2012,10171906
Capital Program ,Rewiring,HCE20,Capital Contract Payments,5000,2454.44,Delec Ltd,133887,16/08/2012,10171906
Housing Revenue Account ,Unplanned Maintenance and Repair,UMR00,R&M External Contractors,0100,995.55,Delec Ltd,133887,23/08/2012,10172052
Housing Revenue Account ,Unplanned Maintenance and Repair,UMR00,R&M External Contractors,0100,946.12,Delec Ltd,133887,23/08/2012,10172254
Resources & Corporate Governance ,Garage Internal,WVR01,Materials,0303,957.20,Brenntag UK Limited,135098,16/08/2012,10171670
Housing Revenue Account ,Alfred Green Close AP,AGP01,Electricity,0130,549.25,Southern Electric,135653,16/08/2012,10171825
Housing Revenue Account ,Frederick Press Way AP,AGP06,Electricity,0130,1.65,Southern Electric,135653,16/08/2012,10171825
Housing Revenue Account ,John Thwaites Close AP,AGP08,Electricity,0130,243.63,Southern Electric,135653,16/08/2012,10171825
Housing Revenue Account ,Stacey Court AP,AGP12,Electricity,0130,174.32,Southern Electric,135653,16/08/2012,10171825
Housing Revenue Account ,Tanser Court AP,AGP17,Electricity,0130,2268.87,Southern Electric,135653,16/08/2012,10171825
Housing Revenue Account ,Eliot Court AP,AGP25,Electricity,0130,274.73,Southern Electric,135653,16/08/2012,10171825
Housing Revenue Account ,Hirst Close AP,AGP33,Electricity,0130,122.20,Southern Electric,135653,16/08/2012,10171825
Housing Revenue Account ,Assheton Close AP,AGP36,Electricity,0130,112.42,Southern Electric,135653,16/08/2012,10171825
Housing Revenue Account ,Deepmore Road/Lytham Road AP,AGP42,Electricity,0130,442.45,Southern Electric,135653,16/08/2012,10171825
Housing Revenue Account ,Edmondson Close Dunchurch AP,AGP44,Electricity,0130,265.31,Southern Electric,135653,16/08/2012,10171825
Housing Revenue Account ,Harold Cox Place AP,AGP51,Electricity,0130,138.71,Southern Electric,135653,16/08/2012,10171825
Housing Revenue Account ,Jackson Road I AP,AGP53,Electricity,0130,24.46,Southern Electric,135653,16/08/2012,10171825
Housing Revenue Account ,Lever Road I AP,AGP57,Electricity,0130,-42.72,Southern Electric,135653,16/08/2012,10171825
Housing Revenue Account ,Miscellaneous AP,AGP99,Electricity,0130,35.04,Southern Electric,135653,16/08/2012,10171825
Housing Revenue Account ,Supervision and Management General,MAN00,Electricity,0130,44.02,Southern Electric,135653,16/08/2012,10171825
Resources & Corporate Governance ,Domestic Waste Collection,WWC00,Vehicle Repair and Maintenance,0200,986.38,Heil Europe Ltd,137390,23/08/2012,10171941
Sustainable Environment ,Crime and Disorder Activities,CAD00,Other Miscellaneous Expenses,0444,711.00,Solon Security Ltd,137493,02/08/2012,10171220
Resources & Corporate Governance ,"Communications, Consultation and Information Team",BTR20,Publicity & Marketing,0377,650.00,ProgrammeMaster Ltd,138019,16/08/2012,10171713
Resources & Corporate Governance ,Electoral Registration,ERG00,External Printing,0352,7198.00,Smith & Ouzman Ltd,138682,30/08/2012,10172234
Housing Revenue Account ,Unplanned Maintenance and Repair,UMR00,R&M External Contractors,0100,1284.64,Regent Office Care Ltd T/A Regent Cleaning,138934,02/08/2012,10171331
Resources & Corporate Governance ,Town Hall,OFF00,Contract Cleaning,0170,4280.55,Regent Office Care Ltd T/A Regent Cleaning,138934,23/08/2012,10171386
Resources & Corporate Governance ,WSU Depot,WDP00,Contract Cleaning,0170,219.00,Regent Office Care Ltd T/A Regent Cleaning,138934,23/08/2012,10171386
Resources & Corporate Governance ,Grounds Maintenance,WGM00,Contract Cleaning,0170,147.50,Regent Office Care Ltd T/A Regent Cleaning,138934,23/08/2012,10171386
Housing Revenue Account ,Sheltered Housing,AGP00,Contract Cleaning,0170,14297.47,Regent Office Care Ltd T/A Regent Cleaning,138934,23/08/2012,10171387
Sustainable Inclusive Communities,Housing Options Team,HOT00,Contract Cleaning,0170,134.76,Regent Office Care Ltd T/A Regent Cleaning,138934,23/08/2012,10171387
Housing Revenue Account ,Estate Management,MAN22,Contract Cleaning,0170,3078.90,Regent Office Care Ltd T/A Regent Cleaning,138934,23/08/2012,10171387
Housing Revenue Account ,Multi-Storey Flats,MSF00,Contract Cleaning,0170,1731.90,Regent Office Care Ltd T/A Regent Cleaning,138934,23/08/2012,10171387
Housing Revenue Account ,Unplanned Maintenance and Repair,UMR00,R&M External Contractors,0100,1431.75,Regent Office Care Ltd T/A Regent Cleaning,138934,09/08/2012,10171648
Housing Revenue Account ,Unplanned Maintenance and Repair,UMR00,R&M External Contractors,0100,860.01,Regent Office Care Ltd T/A Regent Cleaning,138934,30/08/2012,10172367
Housing Revenue Account ,Unplanned Maintenance and Repair,UMR00,R&M External Contractors,0100,904.73,Regent Office Care Ltd T/A Regent Cleaning,138934,30/08/2012,10172368
Resources & Corporate Governance ,Grounds Maintenance,WGM00,External Contractor & Operator,0742,1200.00,D J Whitlock Plant Hire,140156,16/08/2012,10171608
Resources & Corporate Governance ,Grounds Maintenance,WGM00,External Contractor & Operator,0742,1200.00,D J Whitlock Plant Hire,140156,16/08/2012,10171609
Resources & Corporate Governance ,Grounds Maintenance,WGM00,External Contractor & Operator,0742,1200.00,D J Whitlock Plant Hire,140156,16/08/2012,10171610
Resources & Corporate Governance ,Grounds Maintenance,WGM00,External Contractor & Operator,0742,1200.00,D J Whitlock Plant Hire,140156,16/08/2012,10171611
Resources & Corporate Governance ,Grounds Maintenance,WGM00,External Contractor & Operator,0742,1200.00,D J Whitlock Plant Hire,140156,16/08/2012,10171612
Resources & Corporate Governance ,Grounds Maintenance,WGM00,External Contractor & Operator,0742,1200.00,D J Whitlock Plant Hire,140156,30/08/2012,10172426
Resources & Corporate Governance ,Grounds Maintenance,WGM00,External Contractor & Operator,0742,900.00,D J Whitlock Plant Hire,140156,30/08/2012,10172427
Sustainable Environment ,Caldecott Park/Town Centre Area,PKS00,R&M External Contractors,0100,1800.00,D J Whitlock Plant Hire,140156,30/08/2012,10172428
Sustainable Environment ,Street Scene,ENV30,R&M External Contractors,0100,600.00,Goddard Consulting LLP,140373,23/08/2012,10171955
Capital Program ,Great Central Walk Bridge,LEI14,Capital Contract Payments,5000,9202.03,J Murphy and Sons Ltd,140688,02/08/2012,10170781
Economy Development & Culture,Gypsy and Traveller Enforcement,PLN10,External Legal Costs,0741,7236.00,Frampton Town Planning Ltd,142071,02/08/2012,10171065
Resources & Corporate Governance ,Customer and Information Strategy,CIS10,Hardware Maintenance,0376,711.00,Enforce Technology Ltd,142074,09/08/2012,10171209
Sustainable Environment ,Caldecott Park/Town Centre Area,PKS00,R&M External Contractors,0100,1005.00,Fountains Direct Limited,144391,16/08/2012,10171055
Economy Development & Culture,Car Parks General,CPK01,Other Agencies,0734,281.38,PATROL,144963,16/08/2012,10171727
Economy Development & Culture,Decrim. of Car Parking on street parking,DPE02,Other Agencies,0734,1125.52,PATROL,144963,16/08/2012,10171727
Housing Revenue Account ,Control Centre CCTV,CCE01,External Contractor & Operator,0742,15928.66,Securitas Security Personnel Ltd,145079,02/08/2012,10171258
Housing Revenue Account ,Property Maintenance,MAN23,Agency Staff,0003,1131.00,James Andrews Recruitment Solutions Ltd,145100,09/08/2012,10171398
Housing Revenue Account ,Property Maintenance,MAN23,Agency Staff,0003,1059.75,James Andrews Recruitment Solutions Ltd,145100,09/08/2012,10171399
Sustainable Inclusive Communities,Housing Strategy & Enabling,HSE00,Agency Staff,0003,631.79,James Andrews Recruitment Solutions Ltd,145100,09/08/2012,10171504
Sustainable Inclusive Communities,Housing Strategy & Enabling,HSE00,Agency Staff,0003,623.58,James Andrews Recruitment Solutions Ltd,145100,09/08/2012,10171514
Housing Revenue Account ,Property Maintenance,MAN23,Agency Staff,0003,667.00,James Andrews Recruitment Solutions Ltd,145100,09/08/2012,10171546
Sustainable Inclusive Communities,Housing Strategy & Enabling,HSE00,Agency Staff,0003,623.58,James Andrews Recruitment Solutions Ltd,145100,30/08/2012,10171649
Housing Revenue Account ,Property Maintenance,MAN23,Agency Staff,0003,1146.24,James Andrews Recruitment Solutions Ltd,145100,23/08/2012,10171922
Housing Revenue Account ,Property Maintenance,MAN23,Agency Staff,0003,928.00,James Andrews Recruitment Solutions Ltd,145100,23/08/2012,10171923
Sustainable Inclusive Communities,Housing Strategy & Enabling,HSE00,Agency Staff,0003,623.58,James Andrews Recruitment Solutions Ltd,145100,30/08/2012,10171924
Housing Revenue Account ,Property Maintenance,MAN23,Agency Staff,0003,1167.15,James Andrews Recruitment Solutions Ltd,145100,23/08/2012,10172193
Sustainable Inclusive Communities,Housing Strategy & Enabling,HSE00,Agency Staff,0003,418.46,James Andrews Recruitment Solutions Ltd,145100,30/08/2012,10172523
Housing Revenue Account ,Property Maintenance,MAN23,Agency Staff,0003,1189.00,James Andrews Recruitment Solutions Ltd,145100,30/08/2012,10172524
Sustainable Environment ,Caldecott Park/Town Centre Area,PKS00,External Contractor & Operator,0742,2526.20,Sports E-quipment.co.uk,145118,30/08/2012,10172097
Resources & Corporate Governance ,Customer and Information Strategy,CIS10,New Equipment,0300,1163.72,Cetus Solutions Ltd,145150,16/08/2012,10171274
Capital Program ,Open Spaces Refurbishment,LEI08,Capital Contract Payments,5000,1700.00,KOVA Landscape,145321,23/08/2012,10171789
Resources & Corporate Governance ,Street Cleansing,WSC00,Agency Staff,0003,241.80,Blue Arrow Limited,145492,09/08/2012,10169809
Resources & Corporate Governance ,Domestic Waste Collection,WWC00,Agency Staff,0003,290.00,Blue Arrow Limited,145492,09/08/2012,10169809
Resources & Corporate Governance ,Street Cleansing,WSC00,Agency Staff,0003,440.00,Blue Arrow Limited,145492,30/08/2012,10170587
Resources & Corporate Governance ,Domestic Waste Collection,WWC00,Agency Staff,0003,332.70,Blue Arrow Limited,145492,30/08/2012,10170587
Resources & Corporate Governance ,Street Cleansing,WSC00,Agency Staff,0003,515.00,Blue Arrow Limited,145492,09/08/2012,10170818
Resources & Corporate Governance ,Street Cleansing,WSC00,Agency Staff,0003,300.00,Blue Arrow Limited,145492,09/08/2012,10171190
Resources & Corporate Governance ,Domestic Waste Collection,WWC00,Agency Staff,0003,298.72,Blue Arrow Limited,145492,09/08/2012,10171190
Resources & Corporate Governance ,Street Cleansing,WSC00,Agency Staff,0003,660.00,Blue Arrow Limited,145492,09/08/2012,10171517
Resources & Corporate Governance ,Street Cleansing,WSC00,Agency Staff,0003,530.00,Blue Arrow Limited,145492,30/08/2012,10171830
Resources & Corporate Governance ,Domestic Waste Collection,WWC00,Agency Staff,0003,669.68,Blue Arrow Limited,145492,30/08/2012,10171830
Resources & Corporate Governance,Handy man,WHM00,Agency Staff,0003,58.65,Blue Arrow Limited,145492,23/08/2012,10172100
Resources & Corporate Governance ,Domestic Waste Collection,WWC00,Agency Staff,0003,362.92,Blue Arrow Limited,145492,23/08/2012,10172100
Resources & Corporate Governance,Handy man,WHM00,Agency Staff,0003,117.30,Blue Arrow Limited,145492,30/08/2012,10172506
Resources & Corporate Governance ,Street Cleansing,WSC00,Agency Staff,0003,370.00,Blue Arrow Limited,145492,30/08/2012,10172506
Resources & Corporate Governance ,Domestic Waste Collection,WWC00,Agency Staff,0003,410.33,Blue Arrow Limited,145492,30/08/2012,10172506
Sustainable Inclusive Communities,Housing Strategy & Enabling,HSE00,Software Maintenance,0374,3400.00,Housing Partners Ltd,145649,09/08/2012,10168726
Sustainable Inclusive Communities,Housing Strategy & Enabling,HSE00,R&M External Contractors,0100,850.00,Housing Partners Ltd,145649,09/08/2012,10169775
Sustainable Inclusive Communities,Housing Strategy & Enabling,HSE00,R&M External Contractors,0100,3000.00,Housing Partners Ltd,145649,30/08/2012,10169776
Resources & Corporate Governance ,WSU Depot,WDP00,Messing Facilities,0332,458.33,The Blind Company,145719,23/08/2012,10171379
Economy Development & Culture,Economic Development General,ECD00,Training fees,0011,800.00,IED Education Trust,145765,09/08/2012,10171637
Resources & Corporate Governance ,Safety and Resilience,EPL00,Training fees,0011,1500.00,Serco Ltd,146371,30/08/2012,10172341
Resources & Corporate Governance,Corporate Property Administration,CPA00,Training fees,0011,1365.00,The College of Estate Management,146771,23/08/2012,10171639
Resources & Corporate Governance ,Domestic Waste Collection,WWC00,Agency Staff,0003,170.94,Fresh Recruitment Solutions (FRS) Ltd,146784,02/08/2012,10170988
Resources & Corporate Governance ,Trade Waste Collection,WWC01,Agency Staff,0003,252.40,Fresh Recruitment Solutions (FRS) Ltd,146784,02/08/2012,10170988
Resources & Corporate Governance,Handy man,WHM00,Agency Staff,0003,441.51,Fresh Recruitment Solutions (FRS) Ltd,146784,09/08/2012,10171292
Resources & Corporate Governance ,Trade Waste Collection,WWC01,Agency Staff,0003,599.45,Fresh Recruitment Solutions (FRS) Ltd,146784,09/08/2012,10171294
Resources & Corporate Governance ,Domestic Waste Collection,WWC00,Agency Staff,0003,498.49,Fresh Recruitment Solutions (FRS) Ltd,146784,16/08/2012,10171605
Resources & Corporate Governance,Handy man,WHM00,Agency Staff,0003,425.84,Fresh Recruitment Solutions (FRS) Ltd,146784,16/08/2012,10171607
Resources & Corporate Governance,Handy man,WHM00,Agency Staff,0003,454.58,Fresh Recruitment Solutions (FRS) Ltd,146784,23/08/2012,10172210
Resources & Corporate Governance,Corporate Property R&M,CPA01,R&M External Contractors,0100,450.00,Environmental Essentials Ltd,146842,02/08/2012,10171029
Capital Program ,Vehicle Workshop Extension,VWE00,Capital Contract Payments,5000,850.00,Environmental Essentials Ltd,146842,30/08/2012,10172335
Resources & Corporate Governance ,Retired Employees,RET00,Additional Pension Payments,0014,11636.85,WCC Pension Fund,146914,30/08/2012,10172471
Economy Development & Culture,Building Control Services,BCS00,Postage & Distribution,0370,4.04,TNT Post Midlands Ltd,146983,16/08/2012,10171188
Economy Development & Culture,Building Regulation Fee Earning Account,BCS99,Postage & Distribution,0370,5.36,TNT Post Midlands Ltd,146983,16/08/2012,10171188
Resources & Corporate Governance,Central Business Support Services,CSS15,Postage & Distribution,0370,42.93,TNT Post Midlands Ltd,146983,16/08/2012,10171188
Resources & Corporate Governance ,Council Tax and NNDR Collection,CTX01,Postage & Distribution,0370,136.92,TNT Post Midlands Ltd,146983,16/08/2012,10171188
Resources & Corporate Governance ,Electoral Registration,ERG00,Postage & Distribution,0370,53.92,TNT Post Midlands Ltd,146983,16/08/2012,10171188
Sustainable Inclusive Communities,Housing Benefit Administration,HBA00,Postage & Distribution,0370,116.81,TNT Post Midlands Ltd,146983,16/08/2012,10171188
Housing Revenue Account ,Supervision and Management General,MAN00,Postage & Distribution,0370,139.23,TNT Post Midlands Ltd,146983,16/08/2012,10171188
Economy Development & Culture,Planning General/Income,PLN00,Postage & Distribution,0370,27.35,TNT Post Midlands Ltd,146983,16/08/2012,10171188
Resources & Corporate Governance ,General Administration,WAD00,Postage & Distribution,0370,0.96,TNT Post Midlands Ltd,146983,16/08/2012,10171188
Economy Development & Culture,Building Control Services,BCS00,Postage & Distribution,0370,9.66,TNT Post Midlands Ltd,146983,23/08/2012,10171617
Economy Development & Culture,Building Regulation Fee Earning Account,BCS99,Postage & Distribution,0370,12.81,TNT Post Midlands Ltd,146983,23/08/2012,10171617
Resources & Corporate Governance,Central Business Support Services,CSS15,Postage & Distribution,0370,75.96,TNT Post Midlands Ltd,146983,23/08/2012,10171617
Resources & Corporate Governance ,Council Tax and NNDR Collection,CTX01,Postage & Distribution,0370,175.67,TNT Post Midlands Ltd,146983,23/08/2012,10171617
Resources & Corporate Governance ,Electoral Registration,ERG00,Postage & Distribution,0370,15.94,TNT Post Midlands Ltd,146983,23/08/2012,10171617
Sustainable Inclusive Communities,Housing Benefit Administration,HBA00,Postage & Distribution,0370,158.57,TNT Post Midlands Ltd,146983,23/08/2012,10171617
Housing Revenue Account ,Supervision and Management General,MAN00,Postage & Distribution,0370,71.02,TNT Post Midlands Ltd,146983,23/08/2012,10171617
Resources & Corporate Governance ,General Administration,WAD00,Postage & Distribution,0370,4.64,TNT Post Midlands Ltd,146983,23/08/2012,10171617
Economy Development & Culture,Building Control Services,BCS00,Postage & Distribution,0370,4.55,TNT Post Midlands Ltd,146983,23/08/2012,10171826
Economy Development & Culture,Building Regulation Fee Earning Account,BCS99,Postage & Distribution,0370,6.02,TNT Post Midlands Ltd,146983,23/08/2012,10171826
Resources & Corporate Governance,Central Business Support Services,CSS15,Postage & Distribution,0370,51.41,TNT Post Midlands Ltd,146983,23/08/2012,10171826
Resources & Corporate Governance ,Council Tax and NNDR Collection,CTX01,Postage & Distribution,0370,186.49,TNT Post Midlands Ltd,146983,23/08/2012,10171826
Resources & Corporate Governance ,Electoral Registration,ERG00,Postage & Distribution,0370,37.70,TNT Post Midlands Ltd,146983,23/08/2012,10171826
Sustainable Inclusive Communities,Housing Benefit Administration,HBA00,Postage & Distribution,0370,191.70,TNT Post Midlands Ltd,146983,23/08/2012,10171826
Housing Revenue Account ,Supervision and Management General,MAN00,Postage & Distribution,0370,45.37,TNT Post Midlands Ltd,146983,23/08/2012,10171826
Resources & Corporate Governance ,General Administration,WAD00,Postage & Distribution,0370,12.66,TNT Post Midlands Ltd,146983,23/08/2012,10171826
Resources & Corporate Governance ,WSU Depot,WDP00,Messing Facilities,0332,9265.00,Britcab Limited,146988,09/08/2012,10167885
Housing Revenue Account ,Repainting Schemes,UMR02,R&M External Contractors,0100,17696.17,Bell Decorating Group Ltd,147075,30/08/2012,10172455
Housing Revenue Account ,Unplanned Maintenance and Repair,UMR00,R&M External Contractors,0100,1464.18,Integral UK Ltd,147080,02/08/2012,10171070
Housing Revenue Account ,Gas Heating Systems,UMR01,R&M External Contractors,0100,605.00,Integral UK Ltd,147080,02/08/2012,10171070
Housing Revenue Account ,Gas Heating Systems,UMR01,R&M External Contractors,0100,330.00,Integral UK Ltd,147080,23/08/2012,10172046
Housing Revenue Account ,Asbestos Surveys,UMR05,R&M External Contractors,0100,55.00,Integral UK Ltd,147080,23/08/2012,10172046
Housing Revenue Account ,Carbon Monoxide Detectors,UMR07,R&M External Contractors,0100,8876.70,Integral UK Ltd,147080,23/08/2012,10172046
Resources & Corporate Governance ,Domestic Waste Collection,WWC00,External Contractor & Operator,0742,600.00,James Baxter Haulage Ltd,147159,09/08/2012,10171337
Capital Program ,Queen's Diamond Jubilee Leisure Centre Project,LEI03,Capital Contract Payments,5000,4428.75,B3 Architects,147190,02/08/2012,10171341
Sustainable Inclusive Communities,Housing Strategy & Enabling,HSE00,Other,0763,5000.00,Midlands Rural Housing,147202,09/08/2012,10167765
Resources & Corporate Governance ,WSU Depot,WDP00,Messing Facilities,0332,656.70,C H Electrical (Leics) Ltd,147209,09/08/2012,10170927
Resources & Corporate Governance,Handy man,WHM00,Materials,0303,618.50,ECA Supplies (Coventry) Limited,147276,09/08/2012,10171448
Resources & Corporate Governance,Handy man,WHM00,External Contractor & Operator,0742,553.00,Stephen Lamb Fencing,147298,09/08/2012,10171461
Resources & Corporate Governance,Handy man,WHM00,External Contractor & Operator,0742,876.24,Stewart Groom Flooring,147316,16/08/2012,10171704
Economy Development & Culture,Gypsy and Traveller Enforcement,PLN10,External Legal Costs,0741,600.00,Mr Timothy Jones,147358,09/08/2012,10170760
Resources & Corporate Governance ,Domestic Waste Collection,WWC00,Contract Hire,0220,628.00,Trash UK Limited,147379,09/08/2012,10171355
Resources & Corporate Governance ,Domestic Waste Collection,WWC00,Contract Hire,0220,2280.00,Trash UK Limited,147379,30/08/2012,10172460
Resources & Corporate Governance,Handy man,WHM00,Materials,0303,736.84,Edwards Buildbase,147387,09/08/2012,10171221
Housing Revenue Account ,Unplanned Maintenance and Repair,UMR00,R&M External Contractors,0100,608.31,Rixonway Kitchens Ltd,147446,23/08/2012,10171619
Resources & Corporate Governance,Handy man,WHM00,Materials,0303,871.40,Robert Pochin Limited,147536,23/08/2012,10172016
Capital Program ,Disabled Facilities Grant,REN01,Capital Grants,5014,5110.00,Pollards Property Solution,147541,09/08/2012,10171351
Capital Program ,Disabled Facilities Grant,REN01,Capital Grants,5014,4535.00,Pollards Property Solution,147541,30/08/2012,10171995
Capital Program ,Collection Management Database,CMD00,IT Capital Expenditure,5025,4562.50,Adlib Information Systems Ltd,147565,30/08/2012,10172338
Economy Development & Culture,AGM Exhibitions/Outreach,AGM02,Other Miscellaneous Expenses,0444,5750.00,Ruth Thomson,147620,02/08/2012,10171013
Resources & Corporate Governance ,Financial Services,RES10,Subscriptions,0421,660.00,LG Futures Ltd,147641,16/08/2012,10171046
Economy Development & Culture,Gypsy and Traveller Enforcement,PLN10,External Legal Costs,0741,1000.00,Mr Philip Williams,147753,23/08/2012,10172064
Resources & Corporate Governance ,Grounds Maintenance,WGM00,Vehicle Repair and Maintenance,0200,927.44,Chris Tallis Farm Machinery Limited,147758,16/08/2012,10171676
Housing Revenue Account ,Supervision and Management General,MAN00,Movement Incentives,0454,1000.00,REDACTED PERSONAL DATA,147762,23/08/2012,10172004
Capital Program ,Viaduct Cycleways,CYC02,Capital Contract Payments,5000,44400.09,Currall Lewis & Martin (Construction) Ltd,147769,16/08/2012,10171814
Resources & Corporate Governance ,Highways,WHG00,External Contractor & Operator,0742,21481.62,Currall Lewis & Martin (Construction) Ltd,147769,16/08/2012,10171815
Capital Program ,Open Spaces Refurbishment,LEI08,Capital Contract Payments,5000,490.47,Groundwork Environmental Services (Dearne Valley) Ltd,147815,16/08/2012,10171757
Economy Development & Culture,Ken Marriott Leisure Centre,KML00,Other,0763,600.00,Jonathan Gidney,147853,30/08/2012,10172195
Resources & Corporate Governance,Handy man,WHM00,External Contractor & Operator,0742,651.00,D Wesley Contracts,147871,23/08/2012,10172139
Capital Program ,Queen's Diamond Jubilee Leisure Centre Project,LEI03,Capital Contract Payments,5000,546335.93,Shepherd Construction Ltd,148014,02/08/2012,10171260
Resources & Corporate Governance,Handy man,WHM00,External Contractor & Operator,0742,540.00,Dean Hudson,148035,02/08/2012,10171205
Resources & Corporate Governance,Handy man,WHM00,External Contractor & Operator,0742,562.00,Dean Hudson,148035,16/08/2012,10171837
Resources & Corporate Governance,Handy man,WHM00,External Contractor & Operator,0742,603.75,Ford Tucker,148036,02/08/2012,10171225
Resources & Corporate Governance,Handy man,WHM00,External Contractor & Operator,0742,603.75,Ford Tucker,148036,09/08/2012,10171542
Resources & Corporate Governance,Handy man,WHM00,External Contractor & Operator,0742,645.00,Ford Tucker,148036,16/08/2012,10171954
Resources & Corporate Governance,Handy man,WHM00,External Contractor & Operator,0742,671.25,Ford Tucker,148036,23/08/2012,10172136
Resources & Corporate Governance,Handy man,WHM00,External Contractor & Operator,0742,622.50,Ford Tucker,148036,30/08/2012,10172522
Resources & Corporate Governance ,"Communications, Consultation and Information Team",BTR20,Publicity & Marketing,0377,1070.40,Shaw Munster Ltd,148052,02/08/2012,10171016
Capital Program ,Vehicle Workshop Extension,VWE00,Capital Contract Payments,5000,1250.00,Press & Starkey,148069,16/08/2012,10171540
Economy Development & Culture,AGM Education,AGM03,Other Miscellaneous Expenses,0444,450.00,Halo FX Limited,148073,30/08/2012,10171313
Sustainable Environment ,Caldecott Park/Town Centre Area,PKS00,External Contractor & Operator,0742,2256.00,Morral Play Services (Ltd),148092,02/08/2012,10169643
Resources & Corporate Governance ,General Administration,WAD00,Training fees,0011,475.00,Risk - Health & Safety Training & Consultancy Solutions,148143,30/08/2012,10172328
Capital Program ,Fire Risk Assessment,HCE18,Capital Contract Payments,5000,597.60,Lorient Polyproducts Ltd,148179,02/08/2012,10171244
Capital Program ,Corporate Property Enhancements,CPE00,Capital Contract Payments,5000,2450.00,The Engineering Practice Ltd,148180,16/08/2012,10171456
Economy Development & Culture,Ken Marriott Leisure Centre,KML00,Other,0763,3450.00,Strategic Leisure,148196,09/08/2012,10171362
Capital Program ,Great Central Walk Bridge,LEI14,Capital Contract Payments,5000,2550.00,Midshires Scaffolding Co Ltd,148219,23/08/2012,10171551
Resources & Corporate Governance ,WSU Depot,WDP00,Messing Facilities,0332,748.60,Furniture@Work Limited,148239,02/08/2012,10170714
Resources & Corporate Governance ,General Administration,WAD00,Training fees,0011,1175.00,TMS Consultancy,148240,23/08/2012,10172076
Resources & Corporate Governance,Corporate Property R&M,CPA01,R&M External Contractors,0100,1200.00,AVC Neocrest Ltd,148242,02/08/2012,10170777
Resources & Corporate Governance,Corporate Property R&M,CPA01,R&M External Contractors,0100,18050.00,Woods Building Services Ltd,148243,30/08/2012,10172241
Resources & Corporate Governance ,Customer and Information Strategy,CIS10,New Equipment,0300,2290.21,Probrand Limited,148276,09/08/2012,10171486
Resources & Corporate Governance ,WSU Depot,WDP00,External Contractor & Operator,0742,1250.00,Andrew Gibbs Construction Services,148286,09/08/2012,10171358
Resources & Corporate Governance ,WSU Depot,WDP00,External Contractor & Operator,0742,937.50,Andrew Gibbs Construction Services,148286,23/08/2012,10171959
Resources & Corporate Governance ,Town Hall,OFF00,Consultancy Costs,0740,4400.00,dVelopps Ltd,148294,23/08/2012,10171415
Resources & Corporate Governance ,WSU Depot,WDP00,Messing Facilities,0332,2366.30,Adbruf Limited,148313,30/08/2012,10172247
Sustainable Inclusive Communities,Housing Benefit Administration,HBA00,External Legal Costs,0741,700.00,Mr Shane Crawford,148317,23/08/2012,10171929
Resources & Corporate Governance,Handy man,WHM00,External Contractor & Operator,0742,630.00,Tom Swain,148338,23/08/2012,10172185
,Balance Sheet,BS,Contributions To NNDR Pool,9476,1802082.00,Department for Communities & Local Govt,,02/08/2012,
,Balance Sheet,BS,Contributions To NNDR Pool,9476,1802083.00,Department for Communities & Local Govt,,22/08/2012,
Resources & Corporate Governance ,General Financial Services,GFS00,Payment Card Costs,0444,1003.75,Capita,,28/08/2012,
